bitfinex-derivatives/quotes_SOLF0:USTF0_20250224
["timestamp","ask_amount","ask_price","bid_price","bid_amount"]
[1740413565671,1.10863272,153.9,153.82,0.04659326]
[1740413566274,6.5005,153.83,153.82,0.04659326]
[1740413566476,5.9274,153.91,153.73,6.5046]
[1740413566776,1.10897397,153.9,153.71,3.0336]
[1740413567174,1.10897397,153.9,153.73,6.5047]
[1740413567372,1.10897397,153.9,153.71,3.0336]
[1740413567774,0.04114543,153.82,153.79,0.04414418]
[1740413567974,194.0,153.89,153.75,6.5036]
[1740413568174,0.04659326,153.82,153.79,0.04999802]
[1740413568478,195.10897397,153.87,153.71,3.0336]
[1740413568680,0.04659326,153.82,153.79,0.04540304]
[1740413568881,1.10895389,153.9,153.71,3.0336]
[1740413569080,6.54779326,153.82,153.79,0.04907405]
[1740413569280,5.9274,153.91,153.71,3.0336]
[1740413569481,0.04354754,153.82,153.79,0.04165333]
[1740413569678,1.10892886,153.9,153.71,3.0336]
[1740413569880,0.04356914,153.82,153.79,0.04107625]
[1740413570082,1.10892886,153.9,153.71,3.0336]
[1740413570271,0.04399914,153.82,153.79,0.04406764]
[1740413570471,1.10867389,153.9,153.71,3.0336]
[1740413570673,0.04549699,153.82,153.79,0.04428183]
[1740413570880,194.0,153.89,153.71,3.0336]
[1740413571181,0.04464586,153.82,153.79,0.04386992]
[1740413571382,194.0,153.89,153.71,3.0336]
[1740413571681,0.04109406,153.82,153.79,0.04389679]
[1740413571981,194.0,153.88,153.71,3.0336]
[1740413572181,6.5005,153.83,153.76,6.5034]
[1740413572379,0.04659326,153.81,153.78,0.04330315]
[1740413572579,194.0,153.88,153.77,3.0394]
[1740413572777,0.04356524,153.81,153.78,0.04374076]
[1740413572980,194.0,153.87,153.77,9.5422]
[1740413573178,0.04659326,153.81,153.78,0.04346591]
[1740413573878,0.04659326,153.81,153.78,6.54566591]
[1740413574181,0.04659326,153.81,153.78,9.56876591]
[1740413574982,194.0,153.87,153.78,3.06656591]
[1740413575180,12.16,153.92,153.78,3.06656591]
[1740413575374,194.0,153.91,153.78,3.0231]
[1740413575576,6.5003,153.84,153.79,6.5022]
[1740413575975,194.0,153.91,153.8,0.04639302]
[1740413576185,194.0,153.91,153.78,3.0231]
[1740413576386,194.0,153.91,153.84,0.04329003]
[1740413578287,4.04853572,153.9,153.77,3.0394]
[1740413578481,1.10853572,153.89,153.77,3.0394]
[1740413578881,1.10853572,153.89,153.7,5.9454]
[1740413579085,6.5009,153.82,153.74,6.504]
[1740413579288,194.0,153.87,153.71,3.0571]
[1740413579590,0.04148413,153.8,153.76,0.04710246]
[1740413579888,0.04148413,153.8,153.71,3.0571]
[1740413580089,0.04148413,153.8,153.76,0.04310155]
[1740413582789,0.04148413,153.8,153.76,6.54660155]
[1740413583788,0.04148413,153.8,153.76,0.04310155]
[1740413584292,6.54338413,153.8,153.76,0.04310155]
[1740413585595,0.04148413,153.8,153.76,0.04310155]
[1740413587094,0.04148413,153.8,153.77,6.5027]
[1740413587291,0.04148413,153.8,153.76,0.04310155]
[1740413587492,0.04148413,153.8,153.79,6.5022]
[1740413588692,194.0,153.96,153.86,6.4992]
[1740413588896,3.0329,153.93,153.86,6.4992]
[1740413589094,6.4974,153.91,153.86,6.4992]
[1740413589499,3.0329,153.93,153.77,2.9921]
[1740413589699,6.4978,153.9,153.85,6.4996]
[1740413589997,3.0329,153.93,153.83,0.04196514]
[1740413590198,6.4972,153.91,153.85,6.4995]
[1740413590394,6.4972,153.91,153.86,0.04774059]
[1740413590997,3.0329,153.93,153.86,0.04774059]
[1740413591903,3.0329,153.93,153.76,12.16]
[1740413592102,195.10842178,153.92,153.76,12.16]
[1740413592302,195.10842178,153.92,153.72,3.0473]
[1740413592905,195.10842178,153.92,153.73,35.83007628]
[1740413593102,0.0436893,153.84,153.81,6.5013]
[1740413593293,6.4987,153.88,153.73,35.83007628]
[1740413593498,0.04581346,153.84,153.81,0.04307615]
[1740413593702,195.10842178,153.92,153.82,6.5006]
[1740413593901,0.04819373,153.84,153.82,6.5006]
[1740413594106,194.0,153.92,153.74,2.8633]
[1740413594308,0.04659293,153.85,153.81,0.04593043]
[1740413594608,0.04659293,153.85,153.74,2.8633]
[1740413594805,194.0,153.92,153.81,3.14810515]
[1740413595004,194.0,153.92,153.81,3.1028]
[1740413595311,0.04497413,153.88,153.85,0.04565406]
[1740413595707,6.54337413,153.88,153.85,0.04565406]
[1740413595905,0.04497413,153.88,153.85,0.04565406]
[1740413596109,0.04497413,153.88,153.86,6.4992]
[1740413596911,0.04497413,153.88,153.85,0.04565406]
[1740413597314,0.04497413,153.88,153.86,6.4992]
[1740413597606,0.04497413,153.88,153.85,0.04565406]
[1740413599610,194.0,153.95,153.85,0.04565406]
[1740413599812,6.1827,153.97,153.82,2.9556]
[1740413600611,6.1827,153.97,153.84,6.4998]
[1740413600809,6.1827,153.97,153.88,0.04845459]
[1740413601512,6.4972,153.91,153.88,0.04845459]
[1740413601714,6.1827,153.97,153.88,0.04845459]
[1740413602311,6.4971,153.91,153.88,0.04845459]
[1740413602515,6.1827,153.97,153.88,0.04845459]
[1740413602815,6.4974,153.91,153.88,0.04845459]
[1740413603409,6.1827,153.97,153.88,0.04845459]
[1740413603813,6.4973,153.91,153.88,0.04845459]
[1740413604011,6.1827,153.97,153.88,0.04845459]
[1740413604206,71.16869221,154.03,153.89,1.2996296]
[1740413604408,56.97349221,154.03,154.02,6.4925]
[1740413604717,9.68959222,154.03,154.02,6.4925]
[1740413604917,9.68959222,154.03,153.98,12.14]
[1740413605217,9.68959222,154.03,154.01,0.04772293]
[1740413605415,18.69769222,154.03,153.9,6.0456]
[1740413605715,18.69769222,154.03,154.0,0.04815727]
[1740413605915,18.69769222,154.03,153.95,6.54184632]
[1740413606107,18.69769222,154.03,153.95,6.4954]
[1740413606310,18.69769222,154.03,153.97,0.04793363]
[1740413607107,9.0081,154.03,153.97,0.04793363]
[1740413611119,5.9128,154.03,153.97,0.04793363]
[1740413611321,3.0176,154.07,153.97,0.04793363]
[1740413611524,3.0176,154.07,153.9,6.0456]
[1740413611723,3.0176,154.07,154.0,0.04455006]
[1740413611916,3.0176,154.07,154.0,6.53765006]
[1740413612221,3.0176,154.07,154.0,0.04455006]
[1740413613716,3.0176,154.07,154.04,6.4916]
[1740413613922,3.0176,154.07,153.95,12.12]
[1740413614222,3.0176,154.07,154.03,6.4918]
[1740413614821,12.12,154.15,154.03,6.4918]
[1740413614822,6.4863,154.17,154.03,0.04554136]
[1740413615120,3.0254,154.16,153.98,170.02]
[1740413615423,3.0254,154.16,154.12,6.4879]
[1740413615715,3.0254,154.16,154.04,12.12]
[1740413615917,3.0254,154.16,154.13,6.4875]
[1740413616110,411.36201715,154.28,154.05,3.1781]
[1740413616311,114.66238538,154.25,154.13,0.04499091]
[1740413616516,6.2876,154.25,154.17,6.4858]
[1740413616717,6.2876,154.25,154.17,6.52731863]
[1740413616914,6.2876,154.25,154.17,0.04151863]
[1740413617624,108.37478538,154.29,154.17,0.04151863]
[1740413617822,6.2876,154.28,154.17,0.04151863]
[1740413618022,6.2876,154.28,154.13,2.9873]
[1740413618222,6.2876,154.28,154.21,0.04354557]
[1740413618725,6.2876,154.28,154.22,6.4837]
[1740413619121,6.2876,154.28,154.21,0.04354557]
[1740413620523,25.8076,154.28,153.94,12.9913]
[1740413620714,1.10590368,154.27,154.0,35.83007628]
[1740413620913,486.0,154.26,154.01,2.9912]
[1740413621119,1.10590368,154.25,154.01,2.9912]
[1740413621320,206.12,154.24,154.02,3.0083]
[1740413621525,0.04400966,154.15,154.11,0.04646633]
[1740413621719,200.4575,154.19,154.02,3.0083]
[1740413621919,0.04356054,154.15,154.11,0.04308983]
[1740413622122,0.04356054,154.15,154.1,6.4889]
[1740413622325,194.0,154.18,154.02,3.0083]
[1740413623321,194.0,154.18,154.08,0.04555755]
[1740413623522,0.04367983,154.12,154.02,3.0083]
[1740413623722,6.4575,154.19,154.12,6.488]
[1740413624224,0.04746997,154.17,154.14,0.04191126]
[1740413624420,12.9429,154.19,154.11,6.4886]
[1740413624620,12.9429,154.19,154.02,3.0083]
[1740413624825,200.4575,154.19,154.02,3.0083]
[1740413625522,0.04854988,154.12,154.09,0.04743465]
[1740413625722,200.4575,154.19,154.02,3.0083]
[1740413625929,0.04658097,154.12,154.09,0.0441463]
[1740413626122,200.4575,154.19,154.02,3.0083]
[1740413626327,1.10647222,154.18,154.01,2.9912]
[1740413626626,6.488,154.13,153.97,12.12]
[1740413626829,194.0,154.13,153.97,12.12]
[1740413627027,194.0,154.12,153.96,6.0735]
[1740413627230,6.4897,154.09,154.0,6.493]
[1740413627427,0.043796,154.06,154.02,0.04917096]
[1740413627929,0.043796,154.06,153.93,3.0626]
[1740413628127,194.0,154.08,153.93,3.0626]
[1740413628631,194.0,154.07,153.87,35.83007628]
[1740413628824,200.4909,154.06,153.97,6.4943]
[1740413629029,0.04979057,153.99,153.97,6.4943]
[1740413629231,200.4909,154.06,153.97,6.4943]
[1740413629430,0.04313053,154.0,153.98,6.494]
[1740413629828,0.04622971,154.01,153.98,6.494]
[1740413630031,0.04622971,154.01,153.99,6.4937]
[1740413630221,0.04622971,154.01,153.97,0.04313337]
[1740413630833,0.04622971,154.01,153.87,35.83007628]
[1740413631131,194.0,154.16,153.94,12.9917]
[1740413631331,196.9599,154.15,153.95,20.4709]
[1740413631930,6.4888,154.11,154.04,6.4916]
[1740413632127,196.9599,154.15,153.95,20.4709]
[1740413632334,196.9599,154.15,154.06,0.04270453]
[1740413632335,0.04822339,154.09,154.06,0.04270453]
[1740413634336,0.04822339,154.09,154.01,6.4928]
[1740413634637,194.0,154.14,153.95,6.128]
[1740413634834,194.0,154.13,153.95,6.128]
[1740413635136,194.0,154.13,153.89,12.12]
[1740413635335,194.0,154.12,153.9,6.1673]
[1740413635530,0.04237902,154.03,154.0,6.4932]
[1740413635732,194.0,154.11,153.9,6.1673]
[1740413635932,0.04888094,154.03,154.0,0.04708374]
[1740413636133,209.3339,154.07,153.97,6.4943]
[1740413636539,6.4909,154.06,153.97,6.4943]
[1740413637243,0.04404359,154.03,154.0,0.0496842]
[1740413637432,209.3339,154.07,153.9,6.1673]
[1740413637633,0.04533837,154.03,154.0,0.04266991]
[1740413637841,0.04533837,154.03,153.95,6.4951]
[1740413638440,6.53783837,154.03,153.95,6.4951]
[1740413638637,0.04533837,154.03,153.95,6.4951]
[1740413639036,0.04533837,154.03,153.97,0.04663168]
[1740413639542,0.04533837,154.03,153.95,6.4951]
[1740413639744,6.4925,154.02,153.95,6.4951]
[1740413640643,6.493,154.01,153.85,3.89860878]
[1740413640944,194.0,154.02,153.85,3.89860878]
[1740413641146,0.04378197,153.95,153.91,0.04935556]
[1740413641338,194.0,154.01,153.85,3.89860878]
[1740413641538,0.04551509,153.95,153.91,0.04573103]
[1740413641741,6.4945,153.98,153.85,3.89860878]
[1740413641947,0.04802926,153.95,153.91,0.04680007]
[1740413642540,0.04802926,153.95,153.85,0.72730878]
[1740413642734,3.2105,153.97,153.85,0.72730878]
[1740413642941,194.0,153.96,153.81,12.06661907]
[1740413643142,6.497,153.92,153.81,12.06661907]
[1740413643442,194.0,153.96,153.81,12.06661907]
[1740413643845,0.04317616,153.9,153.87,0.04352243]
[1740413644044,0.04317616,153.9,153.88,6.4982]
[1740413644445,0.04317616,153.9,153.87,0.04352243]
[1740413644645,0.04317616,153.9,153.89,6.498]
[1740413649647,7.616e-05,153.9,153.89,6.498]
[1740413650650,7.616e-05,153.9,153.87,0.04352243]
[1740413651248,194.0,153.89,153.75,141.68515332]
[1740413651451,200.0452,153.88,153.75,35.83007628]
[1740413651755,6.5001,153.84,153.75,35.83007628]
[1740413651942,200.0452,153.88,153.75,35.83007628]
[1740413652146,200.0452,153.88,153.74,35.83007628]
[1740413652147,6.0452,153.88,153.74,35.83007628]
[1740413652350,6.83e-05,153.83,153.79,0.04489983]
[1740413652848,6.83e-05,153.83,153.82,6.5009]
[1740413658651,6.83e-05,153.83,153.8,6.5017]
[1740413658846,6.83e-05,153.83,153.79,0.04489983]
[1740413659054,6.5018,153.8,153.79,0.04489983]
[1740413659352,6.83e-05,153.83,153.79,0.04489983]
[1740413659556,6.5017,153.81,153.79,0.04489983]
[1740413659857,6.83e-05,153.83,153.79,0.04489983]
[1740413660349,6.83e-05,153.83,153.79,6.54709983]
[1740413660555,6.83e-05,153.83,153.79,0.04489983]
[1740413660750,6.83e-05,153.83,153.71,11.95681907]
[1740413660950,9.0521,153.88,153.71,11.95681907]
[1740413660951,194.0,153.82,153.71,11.95681907]
[1740413661151,9.4735,153.81,153.71,11.95681907]
[1740413661351,9.4735,153.81,153.75,6.5036]
[1740413661546,2.972,153.81,153.71,11.95681907]
[1740413661753,6.5025,153.79,153.71,11.95681907]
[1740413661950,0.04994481,153.78,153.74,0.04280088]
[1740413662148,6.5034,153.77,153.74,0.04280088]
[1740413662453,0.04994481,153.78,153.74,0.04280088]
[1740413663052,0.04994481,153.78,153.67,74.03307388]
[1740413663250,6.5027,153.78,153.67,74.03307388]
[1740413663449,3.0385,153.8,153.67,74.03307388]
[1740413663660,194.0,153.79,153.67,74.03307388]
[1740413663956,194.0,153.78,153.65,8.95751907]
[1740413664357,15.1585,153.8,153.7,0.04571922]
[1740413664358,6.5056,153.71,153.7,0.04571922]
[1740413664658,194.0,153.77,153.65,8.95751907]
[1740413664864,194.0,153.76,153.65,8.95751907]
[1740413665762,0.04316035,153.72,153.69,0.04872777]
[1740413666349,0.04316035,153.72,153.64,6.5084]
[1740413666653,0.04316035,153.72,153.59,8.95751907]
[1740413666860,206.12,153.71,153.59,8.95751907]
[1740413667655,0.04107057,153.67,153.63,0.04662629]
[1740413668259,0.04107057,153.67,153.66,6.5077]
[1740413668464,7.057e-05,153.67,153.66,6.5077]
[1740413673760,2.999,153.78,153.7,6.5059]
[1740413673959,6.5046,153.74,153.7,6.5059]
[1740413674356,6.5046,153.74,153.7,6.5057]
[1740413675162,6.5047,153.73,153.7,0.04976567]
[1740413675562,3.1512,153.72,153.7,0.04976567]
[1740413675763,3.1512,153.72,153.58,6.4857]
[1740413675764,6.5056,153.71,153.67,6.5069]
[1740413675966,9.9039,153.71,153.67,6.5069]
[1740413676359,6.5063,153.7,153.58,6.4857]
[1740413676657,3.3983,153.71,153.58,6.4857]
[1740413676856,0.04381556,153.66,153.62,0.04262266]
[1740413677062,194.0,153.65,153.56,35.83007628]
[1740413677466,6.5092,153.63,153.57,6.5114]
[1740413678154,6.5092,153.63,153.56,35.83007628]
[1740413678155,0.04373158,153.62,153.56,35.83007628]
[1740413678558,0.04373158,153.62,153.52,35.83007628]
[1740413678763,3.3874,153.64,153.52,35.83007628]
[1740413678962,0.04973217,153.59,153.52,35.83007628]
[1740413680361,0.04973217,153.59,153.56,6.5116]
[1740413681368,0.04973217,153.59,153.52,35.83007628]
[1740413681559,0.04973217,153.59,153.54,6.5127]
[1740413681763,0.04973217,153.59,153.52,35.83007628]
[1740413681963,0.04973217,153.59,153.52,42.34357628]
[1740413682260,6.5119,153.57,153.52,35.83007628]
[1740413682456,0.04973217,153.59,153.52,35.83007628]
[1740413682656,0.04973217,153.59,153.42,35.83007628]
[1740413682657,194.0,153.58,153.42,35.83007628]
[1740413682871,194.0,153.57,153.42,42.11227628]
[1740413683165,0.04645308,153.52,153.47,6.5156]
[1740413684363,6.5141,153.51,153.45,6.5163]
[1740413684768,0.0463329,153.5,153.42,42.11227628]
[1740413684969,0.0463329,153.5,153.49,6.5149]
[1740413686668,0.0463329,153.5,153.42,6.2822]
[1740413686967,0.0463329,153.5,153.49,6.5149]
[1740413687668,0.0463329,153.5,153.42,6.2822]
[1740413687869,0.0463329,153.5,153.47,6.5154]
[1740413688370,0.0463329,153.5,153.41,6.5179]
[1740413688572,194.0,153.49,153.36,3.272]
[1740413688867,6.5172,153.44,153.36,3.272]
[1740413689070,197.4574,153.48,153.36,3.272]
[1740413689271,1.77e-06,153.42,153.36,3.272]
[1740413689665,1.77e-06,153.42,153.33,35.83007628]
[1740413689971,1.77e-06,153.42,153.35,6.5207]
[1740413690268,1.77e-06,153.42,153.33,35.83007628]
[1740413690569,1.77e-06,153.42,153.41,6.5183]
[1740413694668,486.0,153.62,153.52,6.5134]
[1740413694872,9.5784,153.61,153.52,6.5134]
[1740413695064,6.5116,153.57,153.4,74.17733309]
[1740413695266,6.5116,153.57,153.52,6.5134]
[1740413695471,21.7184,153.61,153.52,6.5134]
[1740413695672,6.5132,153.54,153.49,6.5148]
[1740413695968,21.7184,153.61,153.5,0.04235581]
[1740413696174,21.7184,153.61,153.47,6.5155]
[1740413696175,6.514,153.52,153.47,6.5155]
[1740413696474,0.0478158,153.51,153.47,6.5155]
[1740413696670,6.5144,153.51,153.4,74.17733309]
[1740413696868,0.04273678,153.51,153.47,0.04915249]
[1740413697171,0.0434264,153.51,153.47,0.04999278]
[1740413697370,9.9075264,153.51,153.39,3.9370971]
[1740413697570,9.8641,153.51,153.39,3.9370971]
[1740413697772,6.5152,153.49,153.43,6.5171]
[1740413698163,9.8641,153.51,153.39,0.7593971]
[1740413698571,0.04135943,153.47,153.39,0.7593971]
[1740413698973,0.04135943,153.47,153.42,6.5175]
[1740413699167,0.04135943,153.47,153.39,0.7593971]
[1740413699877,0.04135943,153.47,153.36,3.2629]
[1740413700174,194.0,153.46,153.32,110.04337493]
[1740413700375,0.04482923,153.43,153.32,110.04337493]
[1740413700678,6.5186,153.41,153.32,110.04337493]
[1740413700971,0.04836747,153.39,153.32,110.04337493]
[1740413701572,0.04836747,153.39,153.32,35.83007628]
[1740413701873,6.5204,153.36,153.32,35.83007628]
[1740413702075,3.4543,153.4,153.32,35.83007628]
[1740413702277,0.04886751,153.36,153.32,35.83007628]
[1740413703076,6.5212,153.35,153.32,35.83007628]
[1740413703270,0.04886751,153.36,153.32,35.83007628]
[1740413703873,0.04886751,153.36,153.24,15.72871907]
[1740413704076,3.4543,153.4,153.24,15.72871907]
[1740413704277,0.04795807,153.32,153.24,15.72871907]
[1740413705379,0.04795807,153.32,153.28,6.5235]
[1740413706074,0.04795807,153.32,153.24,15.72871907]
[1740413706582,0.04795807,153.32,153.24,8.95751907]
[1740413706774,6.91415807,153.32,153.24,8.95751907]
[1740413707180,3.3791,153.31,153.24,8.95751907]
[1740413707681,3.3791,153.31,153.26,6.5243]
[1740413708782,3.3791,153.31,153.24,6.5251]
[1740413709080,3.3791,153.31,153.21,3.3613]
[1740413709282,0.0446692,153.29,153.26,6.5245]
[1740413710483,0.0446692,153.29,153.27,6.5242]
[1740413710783,12.14,153.41,153.22,3.3497]
[1740413711085,3.2444,153.4,153.22,3.3497]
[1740413711982,0.04552234,153.33,153.29,0.04249774]
[1740413712184,0.04552234,153.33,153.22,3.3497]
[1740413712374,6.5233,153.3,153.29,0.04782547]
[1740413712779,0.04160972,153.31,153.22,3.3497]
[1740413712979,6.4621,153.31,153.14,35.83007628]
[1740413713186,6.4621,153.31,153.15,3.4441]
[1740413713687,6.5245,153.27,153.21,6.5266]
[1740413714088,6.56965828,153.26,153.21,6.5266]
[1740413714288,0.04485828,153.26,153.2,6.5272]
[1740413715086,0.04485828,153.26,153.18,42.35777628]
[1740413715293,0.04485828,153.26,153.18,35.83007628]
[1740413716087,6.5265,153.22,153.18,35.83007628]
[1740413716491,6.56897127,153.22,153.18,35.83007628]
[1740413716985,0.04247127,153.22,153.18,35.83007628]
[1740413717178,6.5274,153.2,153.18,35.83007628]
[1740413717383,6.5274,153.2,153.18,30.61517628]
[1740413717580,6.5277,153.19,153.18,30.61517628]
[1740413718090,13.3073,153.21,153.18,25.40057628]
[1740413718293,6.7804,153.21,153.15,6.5294]
[1740413719095,0.04247127,153.22,153.1,6.4432]
[1740413719392,3.4083,153.29,153.1,6.4432]
[1740413719592,3.83e-06,153.18,153.17,6.5285]
[1740413719792,3.4083,153.29,153.1,6.4432]
[1740413719991,3.4083,153.29,153.13,12.14]
[1740413720790,0.04756601,153.23,153.19,0.04138528]
[1740413720982,0.04756601,153.23,153.13,12.14]
[1740413721188,6.5253,153.25,153.19,0.04234488]
[1740413721486,197.4083,153.29,153.13,12.14]
[1740413721487,9.821e-05,153.2,153.13,12.14]
[1740413721684,6.5224,153.32,153.14,1.1993744]
[1740413721895,3.3017,153.37,153.14,225.97167973]
[1740413722195,3.3048,153.4,153.15,2.50528363]
[1740413722386,6.5197,153.38,153.32,6.5217]
[1740413722588,6.5197,153.38,153.24,12.14]
[1740413722897,0.04738894,153.37,153.33,0.04310606]
[1740413723089,194.0,153.42,153.25,6.6446]
[1740413723290,8.901e-05,153.37,153.33,0.04889649]
[1740413723687,18.4832,153.47,153.26,1.19846198]
[1740413723886,18.4832,153.47,153.25,6.6446]
[1740413724090,18.4832,153.47,153.26,1.19826757]
[1740413724295,6.5169,153.45,153.4,6.5186]
[1740413724596,9.42e-06,153.38,153.35,0.05008955]
[1740413724891,3.2996,153.5,153.34,3.195]
[1740413725186,3.2996,153.5,153.45,6.5165]
[1740413725392,6.5137,153.52,153.35,3.4496]
[1740413725896,0.04273781,153.45,153.42,0.04870806]
[1740413726091,6.5137,153.52,153.35,3.4496]
[1740413726289,0.04115432,153.45,153.42,0.04473943]
[1740413726486,6.3432,153.53,153.35,3.4496]
[1740413726690,0.04449691,153.46,153.42,0.04741047]
[1740413726883,0.04449691,153.46,153.35,6.5204]
[1740413727088,194.0,153.45,153.34,3.195]
[1740413727284,12.14,153.49,153.32,6.5221]
[1740413727285,194.0,153.44,153.32,6.5221]
[1740413727488,6.618,153.43,153.32,6.5221]
[1740413727688,194.0,153.42,153.32,8.95751907]
[1740413727891,197.3343,153.42,153.32,8.95751907]
[1740413728094,0.04877843,153.39,153.35,0.04571977]
[1740413729597,6.56797843,153.39,153.35,0.04571977]
[1740413729789,0.04877843,153.39,153.35,0.04571977]
[1740413732097,6.5204,153.36,153.35,0.04571977]
[1740413732499,3.3301,153.38,153.29,3.2006]
[1740413732696,194.0,153.37,153.29,3.2006]
[1740413733497,194.0,153.37,153.32,6.5218]
[1740413733696,0.04224695,153.35,153.31,0.04859287]
[1740413733997,0.04224695,153.35,153.33,6.5216]
[1740413734802,194.0,153.37,153.31,0.04859287]
[1740413735002,6.6473,153.46,153.31,0.04859287]
[1740413735198,6.6473,153.46,153.29,3.2006]
[1740413735412,6.5179,153.42,153.38,6.5192]
[1740413735703,6.6473,153.46,153.29,3.2006]
[1740413736102,0.04697459,153.39,153.36,0.0456835]
[1740413736298,6.5192,153.39,153.35,6.5205]
[1740413736496,0.0499217,153.36,153.32,0.04486393]
[1740413736703,194.0,153.44,153.29,3.2006]
[1740413736903,0.04233455,153.36,153.32,0.04522811]
[1740413737100,1.11206652,153.45,153.29,3.2006]
[1740413737300,0.04580281,153.36,153.32,0.04821505]
[1740413737505,6.5199,153.38,153.33,6.5213]
[1740413737706,0.05011228,153.36,153.32,0.04306517]
[1740413737906,3.2163,153.43,153.29,3.2006]
[1740413738110,0.04887191,153.36,153.32,0.04147861]
[1740413738301,0.04887191,153.36,153.22,15.44971907]
[1740413738505,194.0,153.35,153.25,6.5248]
[1740413738706,3.3544,153.34,153.25,6.5248]
[1740413739111,6.5235,153.29,153.24,6.5254]
[1740413739410,194.0,153.33,153.25,0.04618525]
[1740413739607,0.04530404,153.28,153.26,6.5246]
[1740413740007,0.04530404,153.28,153.25,0.04618525]
[1740413741215,0.04530404,153.28,153.25,6.57098525]
[1740413741414,0.04530404,153.28,153.25,0.04618525]
[1740413741714,0.04530404,153.28,153.26,6.5243]
[1740413742816,0.04530404,153.28,153.25,6.57118525]
[1740413744110,0.04530404,153.28,153.25,0.04618525]
[1740413744315,0.04530404,153.28,153.25,6.57118525]
[1740413745714,0.04530404,153.28,153.26,6.5246]
[1740413746413,0.04530404,153.28,153.25,6.57118525]
[1740413746614,0.04530404,153.28,153.25,0.04618525]
[1740413747117,6.56930404,153.28,153.25,6.57128525]
[1740413747320,0.04530404,153.28,153.25,0.04618525]
[1740413747619,6.56940404,153.28,153.25,0.04618525]
[1740413750818,6.56940404,153.28,153.25,6.57118525]
[1740413752020,0.04530404,153.28,153.25,6.57118525]
[1740413753920,0.04530404,153.28,153.25,0.04618525]
[1740413754123,194.0,153.33,153.25,0.04618525]
[1740413754324,3.4987,153.37,153.25,0.04618525]
[1740413754525,6.5206,153.36,153.32,6.5218]
[1740413755126,6.5209,153.35,153.32,6.5218]
[1740413755326,6.5209,153.35,153.32,0.04477879]
[1740413756128,0.04915255,153.36,153.22,6.7498]
[1740413756324,3.4987,153.37,153.22,6.7498]
[1740413757031,6.5221,153.33,153.27,6.524]
[1740413757222,0.04711894,153.31,153.28,0.0415813]
[1740413758330,0.04711894,153.31,153.3,6.523]
[1740413760733,3.4987,153.37,153.28,0.0415813]
[1740413761035,3.4205,153.38,153.36,6.5204]
[1740413762029,3.4205,153.38,153.35,0.04131143]
[1740413762231,3.4205,153.38,153.33,6.5214]
[1740413762535,197.46363849,153.38,153.35,0.04557652]
[1740413762736,197.4205,153.38,153.24,13.0511]
[1740413763033,197.4205,153.38,153.22,15.3948]
[1740413763433,197.4205,153.38,153.26,13.0493]
[1740413763636,194.0,153.38,153.22,34.9732]
[1740413763833,4.927e-05,153.34,153.3,0.04210017]
[1740413764136,89.35002573,153.48,153.24,19.576]
[1740413764332,3.4398,153.47,153.25,52.33850601]
[1740413764536,70.71462573,153.48,153.26,1.19850601]
[1740413764833,70.71462573,153.48,153.47,6.5158]
[1740413765236,70.71462573,153.48,153.35,0.04880755]
[1740413765538,70.71462573,153.48,153.4,0.04921929]
[1740413765936,1.587e-05,153.43,153.4,0.04921929]
[1740413766838,1.587e-05,153.43,153.42,6.5179]
[1740413772037,1.587e-05,153.43,153.4,6.56761929]
[1740413772238,194.0,153.52,153.4,0.04921929]
[1740413772541,194.0,153.52,153.36,35.42396558]
[1740413772542,195.1116145,153.51,153.36,35.42396558]
[1740413772741,1.1116145,153.5,153.36,35.42396558]
[1740413772941,194.0,153.51,153.36,35.42396558]
[1740413773146,1.11164586,153.5,153.36,35.42396558]
[1740413773342,0.04603591,153.45,153.42,0.04674726]
[1740413774145,0.04603591,153.45,153.31,3.2378]
[1740413774342,194.0,153.49,153.31,3.2378]
[1740413774942,6.5173,153.44,153.31,3.2378]
[1740413775141,194.0,153.49,153.31,3.2378]
[1740413775343,0.04657591,153.4,153.39,6.5191]
[1740413775546,194.0,153.49,153.31,3.2378]
[1740413775745,0.04787868,153.41,153.38,0.04824626]
[1740413776044,12.1,153.45,153.31,3.2378]
[1740413776240,0.04519028,153.41,153.38,0.04831025]
[1740413776442,6.5196,153.38,153.31,6.5225]
[1740413776640,194.0,153.4,153.28,3.496]